Workbook

Sheet Descriptif
B2: Ce classeur a été créé afin de permettre au régisseur d'un théâtre de tenir d'une façon simple le relevé de ses entrées et ses sorties (recettes et dépenses)
B4: Afin de rendre les choses automatiques, quelques macros ont été créées :
B6: NB : Le mot de passe qui permet d'afficher le code VBA est 'TEST'
B13: Différentes macros sont disponibles sur certaines feuilles du classeur :
B15: Sur la feuille : | D15: Vous pourrez utiliser les macros suivantes :
B17: 'Extraits' | D17: Insérer : | F17: Permet l'insertion de 2 lignes et la recopie des formules dans le bas du tableau d'encodage des mouvements financiers
D19: RenommerSourceTCD : | F19: Permet de rédéfinir la zone qui contient les données source du TCD
D21: NB : Ceci est un exercice. En réalité, il aurait été plus simple de créer un tableau de données structuré et de l'utiliser en tant que source du TCD (CF Ci-dessous)
B23: Extraits_Tableau structué | D23: InsererDansTableau : | F23: Permet l'insertion d'une ligne dans un tableau de données et positionne le curseur en première position de la ligne créée (afin de pouvoir encoder un nouvel enregistrement)
B25: 'Filtres' | D25: Filtrer : | F25: Permet de filtrer les lignes encodées correspondant à un type (libelllé) de recette ou dépense
B27: 'TCD' | D27: ActualiserTCD : | F27: Exécute plusieurs actions et une autre macro :
F29: 1- Se placer sur le TCD et l'actualiser
F30: 2- Filtres les éventuelles lignes qui contiennent des vides
F31: 3- Exécute la macro MiseEnFormeTCD Macro (enregistrée à part, CF ci-dessous)
D33: MiseEnFormeTCD : | F33: 1- Donne une largeur de 15 à toutes les colonnes du TCD, regroupe les dates par année et centre les années
F34: 2- Ajuste la colonne C à son contenu le plus long

Sheet Récap Comptes
C1: I - RECETTES
C4: NATURE DES RECETTES | D4: Compte de l'année
D5: 2016
A8: R1 | B8: R1 | C8: Entrées | D8: =SUMIF(Codes,B8,Montants) -> 2100
A9: R2 | B9: R2 | C9: Sponsors | D9: =SUMIF(Codes,B9,Montants) -> 2300
A10: R3 | B10: R3 | C10: Dons | D10: =SUMIF(Codes,B10,Montants) -> 0
A11: R4 | B11: R4 | C11: Subsides | D11: =SUMIF(Codes,B11,Montants) -> 0
B12: R5 | C12: Autres recettes | D12: =SUMIF(Codes,B12,Montants) -> 0
C14: Total des recettes | D14: =SUM(D8:D12) -> 4400
C16: II - DEPENSES
C19: NATURE DES DEPENSES
A22: D1 | B22: D1 | C22: Nourriture | D22: =SUMIF(Codes,B22,Montants) -> 0
A23: D2 | B23: D2 | C23: Boissons | D23: -100
A24: D3 | B24: D3 | C24: Chauffage | D24: -1500
A25: D4 | B25: D4 | C25: Eclairage | D25: 0
A26: D16 | B26: D5 | C26: Traitement du metteur en scène | D26: 0
A27: D17 | B27: D6 | C27: Traitement des acteurs | D27: 0
A28: D20 | B28: D7 | C28: Traitement du souffleur | D28: 0
A29: D18 | B29: D8 | C29: Traitement des employés d'entretien | D29: 1000
C31: Total des dépenses | D31: =SUM(D22:D29) -> -600
C33: III - RECAPITULATION
C36: Recettes | D36: =D14 -> 4400
C37: Balance
C38: Dépenses | D38: =D31 -> -600
C39: Excédent | D39: =D36+D38 -> 3800
C41: Le présent compte, dressé et déclaré sincère par le trésorier soussigné, est arrêté par le conseil
C42: d'administration, sous les réserves et observations consignées en tête.
C45: Ainsi fait en conseil d'administration … le
C47: Le Secrétaire Le Président Les Membres Le Membre-Trésorier

Sheet Listes
A1: Catégories | J1: RETOUR
B3: ='Récap Comptes'!C8 -> Entrées | C3: ='Récap Comptes'!B8 -> R1
B4: ='Récap Comptes'!C9 -> Sponsors | C4: ='Récap Comptes'!B9 -> R2
B5: ='Récap Comptes'!C10 -> Dons | C5: ='Récap Comptes'!B10 -> R3
B6: ='Récap Comptes'!C11 -> Subsides | C6: ='Récap Comptes'!B11 -> R4
B7: ='Récap Comptes'!C12 -> Autres recettes | C7: ='Récap Comptes'!B12 -> R5
B8: ='Récap Comptes'!C22 -> Nourriture | C8: ='Récap Comptes'!B22 -> D1
B9: ='Récap Comptes'!C23 -> Boissons | C9: ='Récap Comptes'!B23 -> D2
B10: ='Récap Comptes'!C24 -> Chauffage | C10: ='Récap Comptes'!B24 -> D3
B11: ='Récap Comptes'!C25 -> Eclairage | C11: ='Récap Comptes'!B25 -> D4
B12: ='Récap Comptes'!C26 -> Traitement du metteur en scène | C12: ='Récap Comptes'!B26 -> D5
B13: ='Récap Comptes'!C27 -> Traitement des acteurs | C13: ='Récap Comptes'!B27 -> D6
B14: ='Récap Comptes'!C28 -> Traitement du souffleur | C14: ='Récap Comptes'!B28 -> D7
B15: ='Récap Comptes'!C29 -> Traitement des employés d'entretien | C15: ='Récap Comptes'!B29 -> D8

Sheet Extraits
A1: Extraits - Dépenses | D1: Filtrer les données | J1: RETOUR
A3: Associez aux boutons ci-dessous :
B4: - La macro 'Insérer' : | C4: Permet d'insérer 2 lignes au-dessus de la ligne du total
B5: - La macro 'RenommerSourceTCD' : | C5: Permet de redéfinir une zone nommée qui va de la ligne des titres jusqu'à la ligne avant le total général
A7: N° | B7: Date | C7: Libellé | D7: Code catégorie | E7: Montant | F7: Totaux
A8: 8 | B8: 2003-08-05 | C8: Boissons | D8: =_xlfn.XLOOKUP(C8,Catégories,Listes!$C$3:$C$15,"") -> D2 | E8: -100 | F8: =IF(E8="","",SUM($E$8:E8)) -> -100
A9: 9 | B9: 2003-08-06 | C9: Sponsors | D9: =_xlfn.XLOOKUP(C9,Catégories,Listes!$C$3:$C$15,"") -> R2 | E9: 1000 | F9: =IF(E9="","",SUM($E$8:E9)) -> 900
A10: 11 | B10: 2003-08-12 | C10: Entrées | D10: =_xlfn.XLOOKUP(C10,Catégories,Listes!$C$3:$C$15,"") -> R1 | E10: 200 | F10: =IF(E10="","",SUM($E$8:E10)) -> 1100
A11: 12 | B11: 2012-11-11 | C11: Sponsors | D11: =_xlfn.XLOOKUP(C11,Catégories,Listes!$C$3:$C$15,"") -> R2 | E11: 500 | F11: =IF(E11="","",SUM($E$8:E11)) -> 1600
A12: 13 | B12: 2016-03-10 | C12: Chauffage | D12: =_xlfn.XLOOKUP(C12,Catégories,Listes!$C$3:$C$15,"") -> D3 | E12: -500 | F12: =IF(E12="","",SUM($E$8:E12)) -> 1100
A13: 14 | B13: 2016-03-10 | C13: Traitement des employés d'entretien | D13: =_xlfn.XLOOKUP(C13,Catégories,Listes!$C$3:$C$15,"") -> D8 | E13: 1000 | F13: =IF(E13="","",SUM($E$8:E13)) -> 2100
A14: 15 | B14: 2016-03-10 | C14: Sponsors | D14: =_xlfn.XLOOKUP(C14,Catégories,Listes!$C$3:$C$15,"") -> R2 | E14: 800 | F14: =IF(E14="","",SUM($E$8:E14)) -> 2900
A15: 16 | B15: 2016-03-10 | C15: Entrées | D15: =_xlfn.XLOOKUP(C15,Catégories,Listes!$C$3:$C$15,"") -> R1 | E15: 1200 | F15: =IF(E15="","",SUM($E$8:E15)) -> 4100
A16: 17 | B16: 2016-03-10 | C16: Entrées | D16: =_xlfn.XLOOKUP(C16,Catégories,Listes!$C$3:$C$15,"") -> R1 | E16: 200 | F16: =IF(E16="","",SUM($E$8:E16)) -> 4300
A17: 18 | B17: 2016-03-10 | C17: Chauffage | D17: =_xlfn.XLOOKUP(C17,Catégories,Listes!$C$3:$C$15,"") -> D3 | E17: -500 | F17: =IF(E17="","",SUM($E$8:E17)) -> 3800
A18: 19 | B18: 2016-03-10 | C18: Chauffage | D18: =_xlfn.XLOOKUP(C18,Catégories,Listes!$C$3:$C$15,"") -> D3 | E18: -500 | F18: =IF(E18="","",SUM($E$8:E18)) -> 3300
A19: 20 | B19: 2016-03-10 | C19: Entrées | D19: =_xlfn.XLOOKUP(C19,Catégories,Listes!$C$3:$C$15,"") -> R1 | E19: 500 | F19: =IF(E19="","",SUM($E$8:E19)) -> 3800
D20: =_xlfn.XLOOKUP(C20,Catégories,Listes!$C$3:$C$15,"") ->  | E20: Total général | F20: =IF(E20="","",SUM($E$8:E20)) -> 3800
B116: Total général

Sheet Extraits_Solutions
A1: Extraits - Dépenses | D1: Filtrer les données | J1: RETOUR
A3: Associez aux boutons ci-dessous :
B4: - La macro 'Insérer' : | C4: Permet d'insérer 2 lignes au-dessus de la ligne du total
B5: - La macro 'RenommerSourceTCD' : | C5: Permet de redéfinir une zone nommée qui va de la ligne des titres jusqu'à la ligne avant le total général
A7: N° | B7: Date | C7: Libellé | D7: Code catégorie | E7: Montant | F7: Totaux
A8: 8 | B8: 2003-08-05 | C8: Boissons | D8: =_xlfn.XLOOKUP(C8,Catégories,Listes!$C$3:$C$15,"") -> D2 | E8: -100 | F8: =IF(E8="","",SUM($E$8:E8)) -> -100
A9: 9 | B9: 2003-08-06 | C9: Sponsors | D9: =_xlfn.XLOOKUP(C9,Catégories,Listes!$C$3:$C$15,"") -> R2 | E9: 1000 | F9: =IF(E9="","",SUM($E$8:E9)) -> 900
A10: 11 | B10: 2003-08-12 | C10: Entrées | D10: =_xlfn.XLOOKUP(C10,Catégories,Listes!$C$3:$C$15,"") -> R1 | E10: 200 | F10: =IF(E10="","",SUM($E$8:E10)) -> 1100
A11: 12 | B11: 2012-11-11 | C11: Sponsors | D11: =_xlfn.XLOOKUP(C11,Catégories,Listes!$C$3:$C$15,"") -> R2 | E11: 500 | F11: =IF(E11="","",SUM($E$8:E11)) -> 1600
A12: 13 | B12: 2016-03-10 | C12: Chauffage | D12: =_xlfn.XLOOKUP(C12,Catégories,Listes!$C$3:$C$15,"") -> D3 | E12: -500 | F12: =IF(E12="","",SUM($E$8:E12)) -> 1100
A13: 14 | B13: 2016-03-10 | C13: Traitement des employés d'entretien | D13: =_xlfn.XLOOKUP(C13,Catégories,Listes!$C$3:$C$15,"") -> D8 | E13: 1000 | F13: =IF(E13="","",SUM($E$8:E13)) -> 2100
A14: 15 | B14: 2016-03-10 | C14: Sponsors | D14: =_xlfn.XLOOKUP(C14,Catégories,Listes!$C$3:$C$15,"") -> R2 | E14: 800 | F14: =IF(E14="","",SUM($E$8:E14)) -> 2900
A15: 16 | B15: 2016-03-10 | C15: Entrées | D15: =_xlfn.XLOOKUP(C15,Catégories,Listes!$C$3:$C$15,"") -> R1 | E15: 1200 | F15: =IF(E15="","",SUM($E$8:E15)) -> 4100
A16: 17 | B16: 2016-03-10 | C16: Entrées | D16: =_xlfn.XLOOKUP(C16,Catégories,Listes!$C$3:$C$15,"") -> R1 | E16: 200 | F16: =IF(E16="","",SUM($E$8:E16)) -> 4300
A17: 18 | B17: 2016-03-10 | C17: Chauffage | D17: =_xlfn.XLOOKUP(C17,Catégories,Listes!$C$3:$C$15,"") -> D3 | E17: -500 | F17: =IF(E17="","",SUM($E$8:E17)) -> 3800
A18: 19 | B18: 2016-03-10 | C18: Chauffage | D18: =_xlfn.XLOOKUP(C18,Catégories,Listes!$C$3:$C$15,"") -> D3 | E18: -500 | F18: =IF(E18="","",SUM($E$8:E18)) -> 3300
A19: 20 | B19: 2016-03-10 | C19: Entrées | D19: =_xlfn.XLOOKUP(C19,Catégories,Listes!$C$3:$C$15,"") -> R1 | E19: 500 | F19: =IF(E19="","",SUM($E$8:E19)) -> 3800
D20: =_xlfn.XLOOKUP(C20,Catégories,Listes!$C$3:$C$15,"") ->  | F20: =IF(E20="","",SUM($E$8:E20)) -> 
D21: =_xlfn.XLOOKUP(C21,Catégories,Listes!$C$3:$C$15,"") ->  | F21: =IF(E21="","",SUM($E$8:E21)) -> 
D22: =_xlfn.XLOOKUP(C22,Catégories,Listes!$C$3:$C$15,"") ->  | E22: Total général | F22: =IF(E22="","",SUM($E$8:E22)) -> 3800
B118: Total général

Sheet Extraits_Tableau
A1: Extraits - Dépenses | D1: Filtrer les données | J1: RETOUR
A3: Transformez la plage ci-dessous en tableau de données
A4: Associez au bouton une macro qui permet d'insérer 2 lignes au-dessus de la ligne du total
A7: N° | B7: Date | C7: Libellé | D7: Code catégorie | E7: Montant | F7: Totaux
A8: 8 | B8: 2003-08-05 | C8: Boissons | D8: =_xlfn.XLOOKUP(C8,Catégories,Listes!$C$3:$C$15,"") -> D2 | E8: -100 | F8: =IF(E8="","",SUM($E$8:E8)) -> -100
A9: 9 | B9: 2003-08-06 | C9: Sponsors | D9: =_xlfn.XLOOKUP(C9,Catégories,Listes!$C$3:$C$15,"") -> R2 | E9: 1000 | F9: =IF(E9="","",SUM($E$8:E9)) -> 900
A10: 11 | B10: 2003-08-12 | C10: Entrées | D10: =_xlfn.XLOOKUP(C10,Catégories,Listes!$C$3:$C$15,"") -> R1 | E10: 200 | F10: =IF(E10="","",SUM($E$8:E10)) -> 1100
A11: 12 | B11: 2012-11-11 | C11: Sponsors | D11: =_xlfn.XLOOKUP(C11,Catégories,Listes!$C$3:$C$15,"") -> R2 | E11: 500 | F11: =IF(E11="","",SUM($E$8:E11)) -> 1600
A12: 13 | B12: 2016-03-10 | C12: Chauffage | D12: =_xlfn.XLOOKUP(C12,Catégories,Listes!$C$3:$C$15,"") -> D3 | E12: -500 | F12: =IF(E12="","",SUM($E$8:E12)) -> 1100
A13: 14 | B13: 2016-03-10 | C13: Traitement des employés d'entretien | D13: =_xlfn.XLOOKUP(C13,Catégories,Listes!$C$3:$C$15,"") -> D8 | E13: -100 | F13: =IF(E13="","",SUM($E$8:E13)) -> 1000
A14: 15 | B14: 2016-03-10 | C14: Sponsors | D14: =_xlfn.XLOOKUP(C14,Catégories,Listes!$C$3:$C$15,"") -> R2 | E14: 800 | F14: =IF(E14="","",SUM($E$8:E14)) -> 1800
A15: 16 | B15: 2016-03-10 | C15: Entrées | D15: =_xlfn.XLOOKUP(C15,Catégories,Listes!$C$3:$C$15,"") -> R1 | E15: 1200 | F15: =IF(E15="","",SUM($E$8:E15)) -> 3000
A16: 17 | B16: 2016-03-10 | C16: Entrées | D16: =_xlfn.XLOOKUP(C16,Catégories,Listes!$C$3:$C$15,"") -> R1 | E16: 200 | F16: =IF(E16="","",SUM($E$8:E16)) -> 3200
A17: 18 | B17: 2016-03-10 | C17: Chauffage | D17: =_xlfn.XLOOKUP(C17,Catégories,Listes!$C$3:$C$15,"") -> D3 | E17: -500 | F17: =IF(E17="","",SUM($E$8:E17)) -> 2700
A18: 19 | B18: 2016-03-10 | C18: Chauffage | D18: =_xlfn.XLOOKUP(C18,Catégories,Listes!$C$3:$C$15,"") -> D3 | E18: -500 | F18: =IF(E18="","",SUM($E$8:E18)) -> 2200
A19: 20 | B19: 2016-03-10 | C19: Entrées | D19: =_xlfn.XLOOKUP(C19,Catégories,Listes!$C$3:$C$15,"") -> R1 | E19: 500 | F19: =IF(E19="","",SUM($E$8:E19)) -> 2700
A20: Total | F20: =IF(Extraits_Tableau!$A20="","",SUM($E$8:E20)) -> 2700
B119: Total général

Sheet Extraits_Tableau_Solution
A1: Extraits - Dépenses | D1: Filtrer les données | J1: RETOUR
A3: Transformez la plage ci-dessous en tableau de données
A4: Associez au bouton une macro qui permet d'insérer 2 lignes au-dessus de la ligne du total
A7: N° | B7: Date | C7: Libellé | D7: Code catégorie | E7: Montant | F7: Totaux
A8: 8 | B8: 2003-08-05 | C8: Boissons | D8: =_xlfn.XLOOKUP(Tableau1[[#This Row],[Libellé]],Catégories,Listes!$C$3:$C$15,"") -> D2 | E8: -100 | F8: =IF(E8="","",SUM($E$8:E8)) -> -100
A9: 9 | B9: 2003-08-06 | C9: Sponsors | D9: =_xlfn.XLOOKUP(Tableau1[[#This Row],[Libellé]],Catégories,Listes!$C$3:$C$15,"") -> R2 | E9: 1000 | F9: =IF(E9="","",SUM($E$8:E9)) -> 900
A10: 11 | B10: 2003-08-12 | C10: Entrées | D10: =_xlfn.XLOOKUP(Tableau1[[#This Row],[Libellé]],Catégories,Listes!$C$3:$C$15,"") -> R1 | E10: 200 | F10: =IF(E10="","",SUM($E$8:E10)) -> 1100
A11: 12 | B11: 2012-11-11 | C11: Sponsors | D11: =_xlfn.XLOOKUP(Tableau1[[#This Row],[Libellé]],Catégories,Listes!$C$3:$C$15,"") -> R2 | E11: 500 | F11: =IF(E11="","",SUM($E$8:E11)) -> 1600
A12: 13 | B12: 2016-03-10 | C12: Chauffage | D12: =_xlfn.XLOOKUP(Tableau1[[#This Row],[Libellé]],Catégories,Listes!$C$3:$C$15,"") -> D3 | E12: -500 | F12: =IF(E12="","",SUM($E$8:E12)) -> 1100
A13: 14 | B13: 2016-03-10 | C13: Traitement des employés d'entretien | D13: =_xlfn.XLOOKUP(Tableau1[[#This Row],[Libellé]],Catégories,Listes!$C$3:$C$15,"") -> D8 | E13: -100 | F13: =IF(E13="","",SUM($E$8:E13)) -> 1000
A14: 15 | B14: 2016-03-10 | C14: Sponsors | D14: =_xlfn.XLOOKUP(Tableau1[[#This Row],[Libellé]],Catégories,Listes!$C$3:$C$15,"") -> R2 | E14: 800 | F14: =IF(E14="","",SUM($E$8:E14)) -> 1800
A15: 16 | B15: 2016-03-10 | C15: Entrées | D15: =_xlfn.XLOOKUP(Tableau1[[#This Row],[Libellé]],Catégories,Listes!$C$3:$C$15,"") -> R1 | E15: 1200 | F15: =IF(E15="","",SUM($E$8:E15)) -> 3000
A16: 17 | B16: 2016-03-10 | C16: Entrées | D16: =_xlfn.XLOOKUP(Tableau1[[#This Row],[Libellé]],Catégories,Listes!$C$3:$C$15,"") -> R1 | E16: 200 | F16: =IF(E16="","",SUM($E$8:E16)) -> 3200
A17: 18 | B17: 2016-03-10 | C17: Chauffage | D17: =_xlfn.XLOOKUP(Tableau1[[#This Row],[Libellé]],Catégories,Listes!$C$3:$C$15,"") -> D3 | E17: -500 | F17: =IF(E17="","",SUM($E$8:E17)) -> 2700
A18: 19 | B18: 2016-03-10 | C18: Chauffage | D18: =_xlfn.XLOOKUP(Tableau1[[#This Row],[Libellé]],Catégories,Listes!$C$3:$C$15,"") -> D3 | E18: -500 | F18: =IF(E18="","",SUM($E$8:E18)) -> 2200
A19: 20 | B19: 2016-03-10 | C19: Entrées | D19: =_xlfn.XLOOKUP(Tableau1[[#This Row],[Libellé]],Catégories,Listes!$C$3:$C$15,"") -> R1 | E19: 500 | F19: =IF(E19="","",SUM($E$8:E19)) -> 2700
A20: 21 | B20: 2024-11-17 | C20: Entrées | D20: =_xlfn.XLOOKUP(Tableau1[[#This Row],[Libellé]],Catégories,Listes!$C$3:$C$15,"") -> R1 | E20: 200 | F20: =IF(E20="","",SUM($E$8:E20)) -> 2900
A21: 22 | B21: 2024-11-17 | C21: Entrées | D21: =_xlfn.XLOOKUP(Tableau1[[#This Row],[Libellé]],Catégories,Listes!$C$3:$C$15,"") -> R1 | E21: 300 | F21: =IF(E21="","",SUM($E$8:E21)) -> 3200
A22: 23 | B22: 2024-11-17 | C22: Entrées | D22: =_xlfn.XLOOKUP(Tableau1[[#This Row],[Libellé]],Catégories,Listes!$C$3:$C$15,"") -> R1 | E22: 1500 | F22: =IF(E22="","",SUM($E$8:E22)) -> 4700
D23: =_xlfn.XLOOKUP(Tableau1[[#This Row],[Libellé]],Catégories,Listes!$C$3:$C$15,"") ->  | F23: =IF(E23="","",SUM($E$8:E23)) -> 
D24: =_xlfn.XLOOKUP(Tableau1[[#This Row],[Libellé]],Catégories,Listes!$C$3:$C$15,"") ->  | F24: =IF(E24="","",SUM($E$8:E24)) -> 
A25: Total | F25: =IF(Tableau1[[#Totals],[N°]]="","",SUM($E$8:E25)) -> 4700
B124: Total général

Sheet Filtres
B1: Retour | J1: RETOUR
A3: Le bouton filtrer permet de filtrer les données de la feuille 'Extraits_Tableau' selon le libellé choisi en A9 via une macro nommée 'Filtrer'
A4: Lorsque la macro est créée, activer la protection de la feuille et exécuter à nouveau la macro
A5: Modifier le code de la macro de façon à éviter le bug
A8: Libellé | G8: Les filtres avancés :
A9: Dons
G10: 1- Mise en place | I10: Créer la zone de critère qui sera utilisée | M10: Libellé
A11: Libellé | B11: Date | C11: Montant | M11: Dons
I13: Créer la zone d'extraction (les colonnes que nous voulons en résultat) qui sera utilisée
J15: Libellé | K15: Date | L15: Montant
G17: 2- Exécuter le filtre via le ruban 'Données .. Trier et filtrer .. Filtre avancé'
G32: NB : Le filtre avancé n'est pas actualisable => il faut le recommencer à chaque ajout / modification des données

Sheet Filtres_Solution
B1: Retour | J1: RETOUR
A3: Le bouton filtrer permet de filtrer les données de la feuille 'Extraits_Tableau' selon le libellé choisi en A9 via une macro nommée 'Filtrer'
A4: Lorsque la macro est créée, activer la protection de la feuille
A5: Modifier le code de la macro de façon à éviter le bug
A8: Libellé
A9: Entrées
A11: Libellé | B11: Date | C11: Montant
A12: Entrées | B12: 2003-08-12 | C12: 200
A13: Entrées | B13: 2016-03-10 | C13: 1200
A14: Entrées | B14: 2016-03-10 | C14: 200
A15: Entrées | B15: 2016-03-10 | C15: 500
A16: Entrées | B16: 2024-11-17 | C16: 200
A17: Entrées | B17: 2024-11-17 | C17: 300
A18: Entrées | B18: 2024-11-17 | C18: 1500

Sheet TCD
J1: RETOUR
A2: Le tableau croisé dynamique suivant a été créé : regroupement par type et par année, avec addition des montants en données de synthèse.
A3: Un bouton 'Actualiser TCD' permet d'exécuter une macro 'ActualiserTCD' qui actualise les données et filtre les 'non-vides'
A4: Une seconde macro 'MiseEnFormeTCD' sera créée pour définir la largeur des colonnes à 15 et la colonne C à son contenu le plus long
A5: Cette seconde macro sera ajoutée à la première
C8: Somme des Montants | D8: Années (Date)
C9: Libellé | D9: <05/08/2003 | E9: 2003 | F9: 2012 | G9: 2016 | H9: 2024 | I9: Total général
C10: Boissons | E10: -100 | I10: -100
C11: Chauffage | G11: -1500 | I11: -1500
C12: Entrées | E12: 200 | G12: 1900 | H12: 2000 | I12: 4100
C13: Sponsors | E13: 1000 | F13: 500 | G13: 800 | I13: 2300
C14: Traitement des employés d'entretien | G14: -100 | I14: -100
C15: (vide)
C16: Total général | E16: 1100 | F16: 500 | G16: 1100 | H16: 2000 | I16: 4700

Sheet TCD_Solution
J1: RETOUR
A2: Le tableau croisé dynamique suivant a été créé : regroupement par type et par année, avec addition des montants en données de synthèse.
A3: Un bouton 'Actualiser TCD' permet d'exécuter une macro 'ActualiserTCD' qui actualise les données et filtre les 'non-vides'
A4: Une seconde macro 'MiseEnFormeTCD' sera créée pour définir la largeur des colonnes à 15 et la colonne C à son contenu le plus long
A5: Cette seconde macro sera ajoutée à la première
C9: Somme des montants | D9: Années (Date)
C10: Libellé | D10: 2003 | E10: 2012 | F10: 2016 | G10: 2024 | H10: Total général
C11: Chauffage | F11: -1500 | H11: -1500
C12: Entrées | D12: 200 | F12: 1900 | G12: 2000 | H12: 4100
C13: Sponsors | D13: 1000 | E13: 500 | F13: 800 | H13: 2300
C14: Boissons | D14: -100 | H14: -100
C15: Traitement des employés d'entretien | F15: -100 | H15: -100
C16: Total général | D16: 1100 | E16: 500 | F16: 1100 | G16: 2000 | H16: 4700
